fUSD/lending_fUSD_20240508
["ID","MTS","AMOUNT","RATE_DAILY","PERIOD"]
[326642961,1715191848723,-425.06730718,0.00020997,2]
[326642962,1715191848733,-2427.8033923,0.00020998,2]
[326642963,1715191848743,-341.96790398,0.00020998,2]
[326642964,1715191848753,-166.28337518,0.00020998,2]
[326642965,1715191848763,-410.55744323,0.00020998,2]
[326642966,1715191848773,-11900.3037895,0.00020998,2]
[326642967,1715191848783,-9467.40460194,0.00020998,2]
[326642968,1715191848792,-2182.52647844,0.00020998,2]
[326642969,1715191848802,-156.26380112,0.00020998,2]
[326642970,1715191848812,-204.19285788,0.00020998,2]
[326642971,1715191848822,-262.25935508,0.00020998,2]
[326642972,1715191848832,-622.39504904,0.00020998,2]
[326642973,1715191848842,-155.0,0.00020998,2]
[326642974,1715191848852,-4413.23799296,0.00020998,2]
[326642975,1715191848861,-155.0,0.00020998,2]
[326642976,1715191848872,-214.22165342,0.00020998,2]
[326642977,1715191848881,-155.0,0.00020998,2]
[326642978,1715191848892,-1270.37516817,0.00020998,2]
[326642979,1715191848902,-210.00334834,0.00020998,2]
[326642980,1715191848912,-4961.02592929,0.00020998,2]
[326642981,1715191848923,-238.93430392,0.00020998,2]
[326642982,1715191848933,-787.97860526,0.00020998,2]
[326642983,1715191848943,-170.31368154,0.00020998,30]
[326642984,1715191848952,-832.6965,0.00020998,2]
[326642985,1715191848962,-502.29836421,0.00020998,2]
[326642986,1715191848972,-222.19632535,0.00020998,2]
[326642987,1715191848981,-242.23105719,0.00020998,2]
[326642988,1715191848991,-6449.82290462,0.00020998,2]
[326642989,1715191849001,-7505.26883546,0.00020999,2]
[326642990,1715191849016,-33559.2269644,0.00021,2]
[326642991,1715191849026,-30000.0,0.00021,3]
[326642992,1715191849036,-155.41418439,0.00021,2]
[326642993,1715191849047,-500.0,0.00021,2]
[326642994,1715191849056,-500.0,0.00021,2]
[326642995,1715191849066,-500.0,0.00021,2]
[326642996,1715191849076,-500.0,0.00021,2]
[326642997,1715191849087,-500.0,0.00021,2]
[326642998,1715191849096,-500.0,0.00021,2]
[326642999,1715191849106,-500.0,0.00021,2]
[326643000,1715191849116,-500.0,0.00021,2]
[326643001,1715191849125,-500.0,0.00021,2]
[326643002,1715191849134,-500.0,0.00021,2]
[326643003,1715191849144,-500.0,0.00021,2]
[326643004,1715191849153,-500.0,0.00021,2]
[326643005,1715191849163,-500.0,0.00021,2]
[326643006,1715191849173,-500.0,0.00021,2]
[326643007,1715191849183,-500.0,0.00021,2]
[326643008,1715191849192,-500.0,0.00021,2]
[326643009,1715191849202,-500.0,0.00021,2]
[326643010,1715191849211,-500.0,0.00021,2]
[326643011,1715191849221,-500.0,0.00021,2]
[326643012,1715191849231,-500.0,0.00021,2]
[326643013,1715191849240,-500.0,0.00021,2]
[326643014,1715191849250,-500.0,0.00021,2]
[326643015,1715191849259,-500.0,0.00021,2]
[326643016,1715191849269,-500.0,0.00021,2]
[326643017,1715191849278,-500.0,0.00021,2]
[326643018,1715191849287,-500.0,0.00021,2]
[326643019,1715191849297,-500.0,0.00021,2]
[326643020,1715191849306,-500.0,0.00021,2]
[326643021,1715191849315,-500.0,0.00021,2]
[326643022,1715191849325,-500.0,0.00021,2]
[326643023,1715191849335,-500.0,0.00021,2]
[326643024,1715191849344,-500.0,0.00021,2]
[326643025,1715191849353,-500.0,0.00021,2]
[326643026,1715191849363,-500.0,0.00021,2]
[326643027,1715191849372,-500.0,0.00021,2]
[326643028,1715191849382,-500.0,0.00021,2]
[326643029,1715191849391,-500.0,0.00021,2]
[326643030,1715191849401,-500.0,0.00021,2]
[326643031,1715191849413,-500.0,0.00021,2]
[326643032,1715191849424,-37.83654915,0.00021,2]
[326643033,1715191849439,-284.86739574,0.00021,2]
[326643034,1715191849451,-177.29605511,0.00021,2]
[326643035,1715191849460,-500.0,0.00021,2]
[326643036,1715191849470,-280.46,0.00021,2]
[326643037,1715191849481,-500.0,0.00021,2]
[326643038,1715191849491,-425.60815489,0.00021,2]
[326643039,1715191849521,-74.39184511,0.00021,2]
[326643040,1715191849531,-352.71361978,0.00021,2]
[326643041,1715191849956,-147.28638022,0.00021,2]
[326643042,1715191849966,-500.0,0.00021,2]
[326643043,1715191849975,-500.0,0.00021,2]
[326643044,1715191849985,-500.0,0.00021,2]
[326643045,1715191849995,-500.0,0.00021,2]
[326643046,1715191850008,-500.0,0.00021,2]
[326643047,1715191850018,-500.0,0.00021,2]
[326643048,1715191850027,-500.0,0.00021,2]
[326643049,1715191850036,-500.0,0.00021,2]
[326643050,1715191850045,-500.0,0.00021,2]
[326643051,1715191850056,-500.0,0.00021,2]
[326643052,1715191850066,-500.0,0.00021,2]
[326643053,1715191850075,-500.0,0.00021,2]
[326643054,1715191850086,-500.0,0.00021,2]
[326643055,1715191850097,-500.0,0.00021,2]
[326643056,1715191850107,-500.0,0.00021,2]
[326643057,1715191850117,-500.0,0.00021,2]
[326643058,1715191850125,-500.0,0.00021,2]
[326643059,1715191850135,-500.0,0.00021,2]
[326643060,1715191850144,-500.0,0.00021,2]
[326643061,1715191850154,-500.0,0.00021,2]
[326643062,1715191850163,-514.01,0.00021,2]
[326643063,1715191850173,-500.0,0.00021,2]
[326643064,1715191850184,-500.0,0.00021,2]
[326643065,1715191850193,-500.0,0.00021,2]
[326643066,1715191850202,-500.0,0.00021,2]
[326643067,1715191850212,-445.2,0.00021,2]
[326643068,1715191850222,-500.0,0.00021,2]
[326643069,1715191850231,-406.77592833,0.00021,2]
[326643070,1715191850241,-600.0,0.00021,7]
[326643071,1715191850250,-1052.4528805,0.00021009,2]
[326643072,1715191850260,-500.12455499,0.00021009,2]
[326643073,1715191850270,-1695.20337847,0.00021082,2]
[326643074,1715191850280,-900.0,0.000211,7]
[326643075,1715191850290,-1052.4528805,0.00021121,2]
[326643076,1715191850299,-500.12455499,0.00021121,2]
[326643077,1715191850309,-1695.20337847,0.00021173,2]
[326643078,1715191850318,-523.13,0.00021178,2]
[326643079,1715191850327,-302.42,0.00021178,2]
[326643080,1715191850337,-420.02,0.00021178,2]
[326643081,1715191850347,-351.19,0.00021178,2]
[326643082,1715191850356,-150.0,0.00021178,2]
[326643083,1715191850366,-523.13,0.00021178,2]
[326643084,1715191850375,-351.19,0.00021178,2]
[326643085,1715191850384,-150.0,0.00021178,2]
[326643086,1715191850395,-420.02,0.00021178,2]
[326643087,1715191850405,-351.19,0.00021178,2]
[326643088,1715191850414,-420.02,0.00021178,2]
[326643089,1715191850425,-523.13,0.00021178,2]
[326643090,1715191850434,-150.0,0.00021178,2]
[326643091,1715191850444,-346.8,0.00021178,2]
[326643092,1715191850453,-523.13,0.00021178,2]
[326643093,1715191850462,-150.0,0.00021178,2]
[326643094,1715191850471,-420.02,0.00021178,2]
[326643095,1715191850481,-150.0,0.00021178,2]
[326643096,1715191850490,-420.02,0.00021178,2]
[326643097,1715191850499,-523.13,0.00021178,2]
[326643098,1715191850509,-697.46,0.00021178,2]
[326643099,1715191850519,-1017.78,0.00021178,2]
[326643100,1715191850528,-1200.0,0.000212,7]
[326643101,1715191850538,-1052.4528805,0.00021232,2]
[326643102,1715191850547,-500.12455499,0.00021232,2]
[326643103,1715191850557,-1695.20337847,0.00021264,2]
[326643104,1715191850566,-1500.0,0.000213,7]
[326643105,1715191850576,-1052.4528805,0.00021343,2]
[326643106,1715191850585,-500.12455499,0.00021343,2]
[326643107,1715191850595,-1695.20337847,0.00021355,2]
[326643108,1715191850604,-300.0,0.000214,7]
[326643109,1715191850614,-318.4824,0.000214,2]
[326643110,1715191850623,-1695.20337847,0.00021445,2]
[326643111,1715191850632,-1052.4528805,0.00021455,2]
[326643112,1715191850642,-500.12455499,0.00021455,2]
[326643113,1715191850651,-868.53275091,0.00021457,2]
[326643114,1715191850661,-1003.59470822,0.000215,2]
[326643115,1715191850671,-300.0,0.000215,7]
[326643116,1715191850680,-151.0,0.000215,2]
[326643117,1715191850690,-151.0,0.000215,2]
[326643118,1715191850699,-554.04924,0.000215,2]
[326643119,1715191850709,-151.0,0.000215,2]
[326643120,1715191850718,-554.04924,0.000215,2]
[326643121,1715191850727,-868.53275089,0.0002152,2]
[326643122,1715191850736,-1695.20337847,0.00021536,2]
[326643123,1715191850746,-500.0,0.00021557,2]
[326643124,1715191850755,-5992.180938,0.00021565,2]
[326643125,1715191850764,-5992.180938,0.00021565,2]
[326643126,1715191850774,-151.0,0.00021565,2]
[326643127,1715191850784,-288.056492,0.00021565,2]
[326643128,1715191850793,-151.0,0.00021565,2]
[326643129,1715191850802,-151.0,0.00021565,2]
[326643130,1715191850811,-152.838216,0.00021565,2]
[326643131,1715191850821,-151.0,0.00021565,2]
[326643132,1715191850830,-288.056492,0.00021565,2]
[326643133,1715191850911,-246.25155,0.00021565,2]
[326643134,1715191850922,-246.25155,0.00021565,2]
[326643135,1715191850931,-335.532939,0.00021565,2]
[326643136,1715191850942,-500.0,0.00021566,2]
[326643137,1715191850954,-1052.4528805,0.00021566,2]
[326643138,1715191850964,-500.12455499,0.00021566,2]
[326643139,1715191850973,-500.0,0.00021574,2]
[326643140,1715191850983,-500.0,0.00021583,2]
[326643141,1715191850992,-868.53275089,0.00021584,2]
[326643142,1715191851002,-175.76,0.00021589,15]
[326643143,1715191851016,-500.0,0.00021592,2]
[326643144,1715191851026,-300.0,0.000216,7]
[326643145,1715191851036,-500.0,0.00021601,2]
[326643146,1715191851046,-500.0,0.0002161,2]
[326643147,1715191851056,-500.0,0.00021618,2]
[326643148,1715191851065,-500.0,0.00021627,2]
[326643149,1715191851075,-1695.20337847,0.00021627,2]
[326643150,1715191851084,-171.43,0.0002163,2]
[326643151,1715191851099,-151.0,0.00021636,2]
[326643152,1715191851109,-151.0,0.00021636,2]
[326643153,1715191851120,-151.0,0.00021636,2]
[326643154,1715191851129,-151.0,0.00021636,2]
[326643155,1715191851139,-157.074913,0.00021636,2]
[326643156,1715191851149,-151.0,0.00021636,2]
[326643157,1715191851159,-151.0,0.00021636,2]
[326643158,1715191851168,-151.0,0.00021636,2]
[326643159,1715191851179,-181.475129,0.00021636,2]
[326643160,1715191851190,-239.63431,0.00021636,2]
[326643161,1715191851199,-181.475129,0.00021636,2]
[326643162,1715191851209,-239.63431,0.00021636,2]
[326643163,1715191851219,-151.0,0.00021636,2]
[326643164,1715191851228,-151.0,0.00021636,2]
[326643165,1715191851238,-151.0,0.00021636,2]
[326643166,1715191851248,-151.0,0.00021636,2]
[326643167,1715191851257,-151.0,0.00021636,2]
[326643168,1715191851267,-151.0,0.00021636,2]
[326643169,1715191851276,-599.599126,0.00021636,2]
[326643170,1715191851289,-151.0,0.00021636,2]
[326643171,1715191851298,-2684.697006,0.00021636,2]
[326643172,1715191851307,-151.0,0.00021636,2]
[326643173,1715191851317,-599.599126,0.00021636,2]
[326643174,1715191851326,-2684.697006,0.00021636,2]
[326643175,1715191851336,-151.0,0.00021636,2]
[326643176,1715191851345,-151.0,0.00021636,2]
[326643177,1715191851354,-151.0,0.00021636,2]
[326643178,1715191851364,-151.0,0.00021636,2]
[326643179,1715191851374,-151.0,0.00021636,2]
[326643180,1715191851384,-151.0,0.00021636,2]
[326643181,1715191851394,-151.0,0.00021636,2]
[326643182,1715191851404,-500.0,0.00021636,2]
[326643183,1715191851413,-416.866718,0.00021644,2]
[326643184,1715191851424,-500.0,0.00021645,2]
[326643185,1715191851433,-868.53275089,0.00021647,2]
[326643186,1715191851442,-500.0,0.00021654,2]
[326643187,1715191851452,-151.0,0.00021654,2]
[326643188,1715191851464,-151.0,0.00021654,2]
[326643189,1715191851473,-151.0,0.00021654,2]
[326643190,1715191851483,-151.0,0.00021654,2]
[326643191,1715191851493,-215.822161,0.00021654,2]
[326643192,1715191851502,-333.761446,0.00021654,2]
[326643193,1715191851512,-333.761446,0.00021654,2]
[326643194,1715191851521,-154.776194,0.00021654,2]
[326643195,1715191851531,-154.776194,0.00021654,2]
[326643196,1715191851541,-500.0,0.00021662,2]
[326643197,1715191851551,-500.0,0.00021671,2]
[326643198,1715191851560,-1052.4528805,0.00021677,2]
[326643199,1715191851570,-500.12455499,0.00021677,2]
[326643200,1715191851579,-500.0,0.0002168,2]
[326643201,1715191851589,-500.0,0.00021689,2]
[326643202,1715191851598,-500.0,0.00021698,2]
[326643203,1715191851608,-198.608044,0.00021698,2]
[326643204,1715191851618,-151.0,0.00021698,2]
[326643205,1715191851628,-198.608044,0.00021698,2]
[326643206,1715191851637,-151.0,0.00021698,2]
[326643207,1715191851647,-151.0,0.00021698,2]
[326643208,1715191851657,-268.795295,0.00021698,2]
[326643209,1715191851666,-151.0,0.00021698,2]
[326643210,1715191851678,-285.925626,0.00021698,2]
[326643211,1715191851687,-285.925626,0.00021698,2]
[326643212,1715191851697,-151.0,0.00021698,2]
[326643213,1715191851706,-453.302917,0.00021698,2]
[326643214,1715191851716,-453.302917,0.00021698,2]
[326643215,1715191851725,-151.0,0.00021698,2]
[326643216,1715191851735,-151.0,0.00021698,2]
[326643217,1715191851744,-151.0,0.00021698,2]
[326643218,1715191851754,-151.0,0.00021698,2]
[326643219,1715191851764,-257.24917,0.00021698,2]
[326643220,1715191851774,-257.24917,0.00021698,2]
[326643221,1715191851783,-250.093283,0.00021698,2]
[326643222,1715191851793,-250.093283,0.00021698,2]
[326643223,1715191851802,-300.0,0.000217,7]
[326643224,1715191851812,-7500.0,0.000217,2]
[326643225,1715191851821,-500.0,0.00021706,2]
[326643226,1715191851831,-153.309893,0.00021708,2]
[326643227,1715191851840,-153.309893,0.00021708,2]
[326643228,1715191851850,-151.0,0.00021708,2]
[326643229,1715191851860,-151.0,0.00021708,2]
[326643230,1715191851869,-151.0,0.00021708,2]
[326643231,1715191851879,-868.53275089,0.0002171,2]
[326643232,1715191851888,-500.0,0.00021715,2]
[326643233,1715191851897,-1695.20337847,0.00021718,2]
[326643234,1715191851907,-500.0,0.00021724,2]
[326643235,1715191851917,-500.0,0.00021733,2]
[326643236,1715191851928,-500.0,0.00021742,2]
[326643237,1715191851938,-500.0,0.0002175,2]
[326643238,1715191851947,-500.0,0.00021759,2]
[326643239,1715191851956,-500.0,0.00021768,2]
[326643240,1715191851966,-868.53275089,0.00021773,2]
[326643241,1715191851975,-500.0,0.00021777,2]
[326643242,1715191851985,-151.0,0.00021777,2]
[326643243,1715191852065,-151.0,0.00021777,2]
[326643244,1715191852075,-554.04924,0.00021777,2]
[326643245,1715191852086,-252.821934,0.00021777,2]
[326643246,1715191852095,-554.04924,0.00021777,2]
[326643247,1715191852105,-309.80234052,0.0002178,2]
[326643248,1715191852114,-500.0,0.00021786,2]
[326643249,1715191852124,-1052.4528805,0.00021789,2]
[326643250,1715191852133,-357.33439095,0.00021789,2]
[326643251,1715191852147,-142.79016404,0.00021789,2]
[326643252,1715191852156,-500.0,0.00021794,2]
[326643253,1715191852166,-500.0,0.000218,7]
[326643254,1715191852176,-810.2660858,0.000218,2]
[326643255,1715191852186,-151.0,0.00021801,2]
[326643256,1715191852195,-151.0,0.00021801,2]
[326643257,1715191852205,-151.0,0.00021801,2]
[326643258,1715191852214,-151.0,0.00021801,2]
[326643259,1715191852223,-151.0,0.00021801,2]
[326643260,1715191852233,-151.0,0.00021801,2]
[326643261,1715191852242,-200.0,0.00021801,2]
[326643262,1715191852251,-1000.0,0.00021801,2]
[326643263,1715191852261,-500.0,0.00021801,2]
[326643264,1715191852270,-200.0,0.00021801,2]
[326643265,1715191852279,-200.0,0.00021802,2]
[326643266,1715191852289,-200.0,0.00021802,2]
[326643267,1715191852298,-1000.0,0.00021802,2]
[326643268,1715191852307,-500.0,0.00021802,2]
[326643269,1715191852316,-5992.180938,0.00021802,2]
[326643270,1715191852325,-151.0,0.00021802,2]
[326643271,1715191852334,-5992.180938,0.00021802,2]
[326643272,1715191852343,-151.0,0.00021802,2]
[326643273,1715191852352,-288.056492,0.00021802,2]
[326643274,1715191852363,-151.0,0.00021802,2]
[326643275,1715191852372,-151.0,0.00021802,2]
[326643276,1715191852381,-288.056492,0.00021802,2]
[326643277,1715191852391,-246.25155,0.00021802,2]
[326643278,1715191852400,-246.25155,0.00021802,2]
[326643279,1715191852410,-335.532939,0.00021802,2]
[326643280,1715191852420,-200.0,0.00021802,2]
[326643281,1715191852429,-200.0,0.00021802,2]
[326643282,1715191852438,-1000.0,0.00021802,2]
[326643283,1715191852448,-1000.0,0.00021802,2]
[326643284,1715191852457,-500.0,0.00021802,2]
[326643285,1715191852467,-500.0,0.00021802,2]
[326643286,1715191852476,-500.0,0.00021802,2]
[326643287,1715191852486,-200.0,0.00021802,2]
[326643288,1715191852496,-500.0,0.00021803,2]
[326643289,1715191852506,-1695.20337847,0.00021809,2]
[326643290,1715191852515,-500.0,0.00021812,2]
[326643291,1715191852527,-500.0,0.00021821,2]
[326643292,1715191852548,-500.0,0.0002183,2]
[326643293,1715191852565,-151.0,0.0002183,2]
[326643294,1715191852584,-151.0,0.0002183,2]
[326643295,1715191852604,-151.0,0.0002183,2]
[326643296,1715191852625,-151.0,0.0002183,2]
[326643297,1715191852644,-151.0,0.0002183,2]
[326643298,1715191852662,-151.0,0.0002183,2]
[326643299,1715191852676,-151.0,0.0002183,2]
[326643300,1715191852695,-181.475129,0.0002183,2]
[326643301,1715191852715,-239.63431,0.0002183,2]
[326643302,1715191852730,-181.475129,0.0002183,2]
[326643303,1715191852743,-239.63431,0.0002183,2]
[326643304,1715191852761,-151.0,0.0002183,2]
[326643305,1715191852776,-151.0,0.0002183,2]
[326643306,1715191852791,-151.0,0.0002183,2]
[326643307,1715191852804,-151.0,0.0002183,2]
[326643308,1715191852821,-151.0,0.0002183,2]
[326643309,1715191852835,-151.0,0.0002183,2]
[326643310,1715191852851,-599.599126,0.0002183,2]
[326643311,1715191852866,-151.0,0.0002183,2]
[326643312,1715191852881,-2684.697006,0.0002183,2]
[326643313,1715191852895,-266.581812,0.0002183,2]
[326643314,1715191852909,-599.599126,0.0002183,2]
[326643315,1715191852924,-2684.697006,0.0002183,2]
[326643316,1715191852938,-151.0,0.0002183,2]
[326643317,1715191852953,-151.0,0.0002183,2]
[326643318,1715191852967,-151.0,0.0002183,2]
[326643319,1715191852982,-151.0,0.0002183,2]
[326643320,1715191852997,-151.0,0.0002183,2]
[326643321,1715191853016,-151.0,0.0002183,2]
[326643322,1715191853030,-151.0,0.0002183,2]
[326643323,1715191853045,-868.53275089,0.00021837,2]
[326643324,1715191853059,-151.0,0.00021838,2]
[326643325,1715191853074,-151.0,0.00021838,2]
[326643326,1715191853089,-151.0,0.00021838,2]
[326643327,1715191853103,-500.0,0.00021838,2]
[326643328,1715191853118,-500.0,0.00021847,2]
[326643329,1715191853132,-151.0,0.00021856,2]
[326643330,1715191853146,-151.0,0.00021856,2]
[326643331,1715191853161,-151.0,0.00021856,2]
[326643332,1715191853174,-151.0,0.00021856,2]
[326643333,1715191853189,-215.822161,0.00021856,2]
[326643334,1715191853204,-333.761446,0.00021856,2]
[326643335,1715191853219,-333.761446,0.00021856,2]
[326643336,1715191853234,-154.776194,0.00021856,2]
[326643337,1715191853248,-154.776194,0.00021856,2]
[326643338,1715191853262,-500.0,0.00021856,2]
[326643339,1715191853277,-10000.0,0.00021877,2]
[326643340,1715191853293,-151.0,0.00021877,2]
[326643341,1715191853308,-151.0,0.00021877,2]
[326643342,1715191853319,-256.137789,0.00021877,2]
[326643343,1715191853328,-198.608044,0.00021877,2]
[326643344,1715191853452,-191.836925,0.00021877,2]
[326643345,1715191853469,-198.608044,0.00021877,2]
[326643346,1715191853479,-151.0,0.00021877,2]
[326643347,1715191853488,-151.0,0.00021877,2]
[326643348,1715191853497,-151.665292,0.00021877,2]
[326643349,1715191853507,-285.925626,0.00021877,2]
[326643350,1715191853516,-285.925626,0.00021877,2]
[326643351,1715191853526,-151.0,0.00021877,2]
[326643352,1715191853535,-453.302917,0.00021877,2]
[326643353,1715191853545,-453.302917,0.00021877,2]
[326643354,1715191853554,-151.0,0.00021877,2]
[326643355,1715191853563,-151.0,0.00021877,2]
[326643356,1715191853572,-151.0,0.00021877,2]
[326643357,1715191853581,-151.0,0.00021877,2]
[326643358,1715191853591,-257.24917,0.00021877,2]
[326643359,1715191853600,-257.24917,0.00021877,2]
[326643360,1715191853609,-250.093283,0.00021877,2]
[326643361,1715191853618,-250.093283,0.00021877,2]
[326643362,1715191853627,-1407.0,0.00021878,2]
[326643363,1715191853636,-153.309893,0.00021878,2]
[326643364,1715191853645,-153.309893,0.00021878,2]
[326643365,1715191853655,-151.0,0.00021878,2]
[326643366,1715191853664,-151.0,0.00021878,2]
[326643367,1715191853674,-151.493653,0.00021878,2]
[326643368,1715191853683,-683.96381212,0.00021879,2]
[326643369,1715191853693,-683.9638121,0.0002188,2]
[326643370,1715191853702,-172.66937424,0.0002188,2]
[326643371,1715191853711,-151.71740718,0.0002188,2]
[326643372,1715191853721,-188.96003174,0.0002188,2]
[326643373,1715191853730,-683.9638121,0.0002188,2]
[326643374,1715191853739,-203.03478331,0.0002188,2]
[326643375,1715191853748,-229.33159064,0.0002188,2]
[326643376,1715191853758,-151.0,0.00021885,2]
[326643377,1715191853769,-151.0,0.00021885,2]
[326643378,1715191853779,-151.0,0.00021885,2]
[326643379,1715191853788,-229.33159062,0.0002189,2]
[326643380,1715191853797,-6762.66945982,0.000219,2]
[326643381,1715191853807,-343.0,0.000219,2]
[326643382,1715191853816,-1695.20337847,0.000219,2]
[326643383,1715191853825,-172.66937423,0.000219,2]
[326643384,1715191853835,-151.0,0.000219,2]
[326643385,1715191853844,-151.0,0.000219,2]
[326643386,1715191853853,-151.0,0.000219,2]
[326643387,1715191853863,-3750.0,0.000219,2]
[326643388,1715191853872,-1052.4528805,0.000219,2]
[326643389,1715191853881,-1000.0,0.000219,2]
[326643390,1715191853890,-5992.180938,0.000219,2]
[326643391,1715191853899,-151.0,0.000219,2]
[326643392,1715191853908,-5992.180938,0.000219,2]
[326643393,1715191853918,-868.53275089,0.000219,2]
[326643394,1715191853927,-288.056492,0.000219,2]
[326643395,1715191853936,-168.267636,0.000219,2]
[326643396,1715191853945,-151.0,0.000219,2]
[326643397,1715191853954,-500.12455499,0.000219,2]
[326643398,1715191853963,-309.80234052,0.000219,2]
[326643399,1715191853974,-288.056492,0.000219,2]
[326643400,1715191853983,-151.0,0.000219,2]
[326643401,1715191853993,-246.25155,0.000219,2]
[326643402,1715191854002,-151.0,0.000219,2]
[326643403,1715191854016,-554.04924,0.000219,2]
[326643404,1715191854025,-246.25155,0.000219,2]
[326643405,1715191854035,-335.532939,0.000219,2]
[326643406,1715191854044,-554.04924,0.000219,2]
[326643407,1715191854053,-151.0,0.00021917,2]
[326643408,1715191854062,-151.0,0.00021917,2]
[326643409,1715191854072,-151.0,0.00021917,2]
[326643410,1715191854081,-151.0,0.00021917,2]
[326643411,1715191854093,-151.0,0.00021917,2]
[326643412,1715191854102,-151.0,0.00021917,2]
[326643413,1715191854112,-500.0,0.00021917,2]
[326643414,1715191854121,-500.0,0.00021917,2]
[326643415,1715191854130,-500.0,0.00021917,2]
[326643416,1715191854139,-151.0,0.00021917,2]
[326643417,1715191854148,-181.475129,0.00021917,2]
[326643418,1715191854157,-1886.04,0.00021917,2]
[326643419,1715191854166,-239.63431,0.00021917,2]
[326643420,1715191854176,-181.475129,0.00021917,2]
[326643421,1715191854186,-239.63431,0.00021917,2]
[326643422,1715191854195,-151.0,0.00021917,2]
[326643423,1715191854204,-151.0,0.00021917,2]
[326643424,1715191854213,-151.0,0.00021917,2]
[326643425,1715191854223,-151.0,0.00021917,2]
[326643426,1715191854231,-151.0,0.00021917,2]
[326643427,1715191854241,-151.0,0.00021917,2]
[326643428,1715191854251,-599.599126,0.00021917,2]
[326643429,1715191854260,-151.0,0.00021917,2]
[326643430,1715191854269,-2684.697006,0.00021917,2]
[326643431,1715191854279,-599.599126,0.00021917,2]
[326643432,1715191854289,-2684.697006,0.00021917,2]
[326643433,1715191854298,-151.0,0.00021917,2]
[326643434,1715191854307,-151.0,0.00021917,2]
[326643435,1715191854316,-197.0,0.00021917,2]
[326643436,1715191854325,-151.0,0.00021917,2]
[326643437,1715191854334,-151.0,0.00021917,2]
[326643438,1715191854347,-151.0,0.00021917,2]
[326643439,1715191854357,-151.0,0.00021917,2]
[326643440,1715191854367,-1000.0,0.00021918,2]
[326643441,1715191854376,-1000.0,0.00021918,2]
[326643442,1715191854387,-1000.0,0.00021918,2]
[326643443,1715191854396,-1000.0,0.00021918,2]
[326643444,1715191854405,-1000.0,0.00021918,2]
[326643445,1715191854415,-1000.0,0.00021918,2]
[326643446,1715191854424,-1000.0,0.00021918,2]
[326643447,1715191854433,-1000.0,0.00021918,2]
[326643448,1715191854443,-1000.0,0.00021918,2]
[326643449,1715191854452,-1000.0,0.00021918,2]
[326643450,1715191854462,-1000.0,0.00021918,2]
[326643451,1715191854471,-1000.0,0.00021918,2]
[326643452,1715191854481,-1000.0,0.00021918,2]
[326643453,1715191854492,-1016.0,0.00021918,2]
[326643454,1715191854502,-250.0,0.00021918,2]
[326643455,1715191854511,-250.0,0.00021918,2]
[326643456,1715191854520,-157.66,0.00021918,2]
[326643457,1715191854531,-2000.0,0.00021918,2]
[326643458,1715191854540,-151.0,0.00021918,7]
[326643459,1715191854549,-151.0,0.00021918,7]
[326643460,1715191854559,-151.0,0.00021918,7]